Cogmind - Beta 11.1 @@@ ROGUE MODE // 2022.05.14 @ 18:30:19 Player: laserbat Result: Self-destructed Performance ------------- Evolutions (3) 1500 Regions Visited (5) 1000 Robots Destroyed (1) 5 Value Destroyed (10) 10 Prototype IDs (0) 0 Alien Tech Used (0) 0 Bonus (0) 0 TOTAL SCORE: 2515 Bonus ------- None Cogmind --------- Core Integrity 700/700 Matter 300/300 Energy 100/100 System Corruption 0% Temperature Cool (0) Movement Core (50) Location -7/Factory Parts ------- > --- POWER (1) -------- (None) > --- PROPULSION (6) --- (None) > --- UTILITY (4) ------ (None) > --- WEAPON (2) ------- (None) > --- INVENTORY (5) ---- (None) Peak State ------------ None Favorites ----------- Power None Propulsion None Utility None Weapon None Build | -11 -10 -9 -8 -8 -7 ------- Run | Scr Mat Mat Mat Sto Fac Slots Evolved 6 | . . 2 2 . 2 Power . | . . . . . . Propulsion 4 | . . . 2 . 2 Utility 2 | . . 2 . . . Weapon . | . . . . . . Parts Attached . | . . . . . . Power . | . . . . . . Engine . | . . . . . . Core . | . . . . . . Reactor . | . . . . . . Propulsion . | . . . . . . Treads . | . . . . . . Leg . | . . . . . . Wheel . | . . . . . . Hover . | . . . . . . Flight . | . . . . . . Utility . | . . . . . . Device . | . . . . . . Storage . | . . . . . . Processor . | . . . . . . Hackware . | . . . . . . Protection . | . . . . . . Artifact . | . . . . . . Weapon . | . . . . . . Energy Gun . | . . . . . . Energy Cannon . | . . . . . . Ballistic Gun . | . . . . . . Ballistic Cannon . | . . . . . . Launcher . | . . . . . . Special Weapon . | . . . . . . Impact Weapon . | . . . . . . Slashing Weapon . | . . . . . . Piercing Weapon . | . . . . . . Special Melee Weapon . | . . . . . . Unidentified Prototypes . | . . . . . . Parts Lost . | . . . . . . Power . | . . . . . . Propulsion . | . . . . . . Utility . | . . . . . . Weapon . | . . . . . . Highest Loss Streak . | . . . . . . To Critical Strikes . | . . . . . . Average Slot Usage (%) . | . . . . . . Naked Turns 251 | . 56 40 53 102 . Heaviest Build . | . . . . . . Greatest Support 3 | 3 3 3 3 3 . Greatest Overweight (x) . | . . . . . . Average Overweight (x) . | . . . . . . Largest Inventory Capacity 5 | 5 5 5 5 5 . Average Capacity 5 | 5 5 5 5 5 . Most Carried 4 | 4 . . . . . Average Carried . | 2 . . . . . Final Capacity 5 | 5 5 5 5 5 5 Final Carried . | . . . . . . Class Distribution -------------------- 100% | Mutant Dominant Class ---------------- Mutant | -10/Materials Mutant | -9/Materials Mutant | -8/Materials Mutant | -8/Storage Mutant | -7/Factory Resources | -11 -10 -9 -8 -8 -7 ----------- Run | Scr Mat Mat Mat Sto Fac Matter Collected 200 | 200 . . . . . Remotely . | . . . . . . Salvage Created 15 | . 15 . . . . Parts 1 | . 1 . . . . Haulers Intercepted . | . . . . . . Recyclers Shooed . | . . . . . . Parts Field Recycled . | . . . . . . Retrieved Matter . | . . . . . . Parts Self-Destructed . | . . . . . . Prevented . | . . . . . . Kills | -11 -10 -9 -8 -8 -7 ------- Run | Scr Mat Mat Mat Sto Fac Combat Hostiles Destroyed 1 | . 1 . . . . Melee 1 | . 1 . . . . Classes Destroyed 1 | . 1 . . . . Swarmer 1 | . 1 . . . . Best Kill Streak 1 | . 1 . . . . Combat Bots Only 1 | . 1 . . . . Max Kills in Single Turn 1 | . 1 . . . . Gunslinging . | . . . . . . Exploded . | . . . . . . Melee 1 | . 1 . . . . Uniques/NPCs Destroyed . | . . . . . . Combat | -11 -10 -9 -8 -8 -7 -------- Run | Scr Mat Mat Mat Sto Fac Damage Taken 527 | . 150 . 61 316 . Core 527 | . 150 . 61 316 . Absorbed by Shields . | . . . . . . Core Remaining (%) 67 | 100 40 100 . 31 . Volleys Fired . | . . . . . . Largest . | . . . . . . Hottest . | . . . . . . Shots Fired . | . . . . . . Gun . | . . . . . . Cannon . | . . . . . . Launcher . | . . . . . . Special . | . . . . . . Kinetic . | . . . . . . Thermal . | . . . . . . Explosive . | . . . . . . Electromagnetic . | . . . . . . Robot Hit Streak . | . . . . . . Robot Miss Streak . | . . . . . . Penetration Max . | . . . . . . Secondary Targets . | . . . . . . Shots Hit Robots . | . . . . . . Core Hits 3 | . 3 . . . . Critical Kills . | . . . . . . Critical Parts Destroyed . | . . . . . . Critical Strikes . | . . . . . . Melee Attacks . | . . . . . . Impact . | . . . . . . Slashing . | . . . . . . Piercing . | . . . . . . Sneak Attacks . | . . . . . . Combat Hostiles . | . . . . . . Follow-up Attacks . | . . . . . . Damage Inflicted 91 | . 62 . 11 18 . Guns . | . . . . . . Cannons . | . . . . . . Explosions . | . . . . . . Melee . | . . . . . . Ramming 91 | . 62 . 11 18 . Kinetic . | . . . . . . Thermal . | . . . . . . Explosive . | . . . . . . Electromagnetic . | . . . . . . Impact . | . . . . . . Slashing . | . . . . . . Piercing . | . . . . . . Highest Corruption 3 | . 3 . . 1 . Average Corruption 1 | . 2 . . 1 . Corruption Purged . | . . . . . . Corruption Blocked . | . . . . . . Overload Shots . | . . . . . . Overflow Damage . | . . . . . . Projectiles . | . . . . . . Explosions . | . . . . . . Melee . | . . . . . . Knockbacks . | . . . . . . Impact . | . . . . . . Kinetic . | . . . . . . Secondary . | . . . . . . Self-Inflicted Damage 39 | . 27 . 5 7 . Shots . | . . . . . . Rammed 21 | . 15 . 1 5 . Targets Rammed 21 | . 15 . 1 5 . Kicked . | . . . . . . Crushed . | . . . . . . Highest Temperature . | . . . . . . Average Temperature . | . . . . . . Received Heat Transfer 108 | . 18 . . 90 . Siege Activations . | . . . . . . Robots Corrupted . | . . . . . . Combat Hostiles . | . . . . . . Parts Fried . | . . . . . . Impact Corruptions . | . . . . . . Robots Melted . | . . . . . . Combat Hostiles . | . . . . . . Parts Melted . | . . . . . . Heat Transferred . | . . . . . . Parts Sabotaged . | . . . . . . Parts Stolen . | . . . . . . Parts Stripped . | . . . . . . Power Chain Reactions . | . . . . . . Missiles Intercepted . | . . . . . . Alert | -11 -10 -9 -8 -8 -7 ------- Run | Scr Mat Mat Mat Sto Fac Peak Influence 121 | . 71 44 39 121 . Initial 54 | . . 29 18 16 54 Average 38 | . 35 36 22 49 . Maximum Alert Level . | . . . . . . Low Security (%) 100 | 100 100 100 100 100 . Level 1 . | . . . . . . Level 2 . | . . . . . . Level 3 . | . . . . . . Level 4 . | . . . . . . Level 5 . | . . . . . . High Security . | . . . . . . Max Security . | . . . . . . Squads Dispatched 5 | . 1 . . 4 . Investigation 3 | . 1 . . 2 . Extermination . | . . . . . . Reinforcement 2 | . . . . 2 . Assault . | . . . . . . Garrison . | . . . . . . Intercept . | . . . . . . Searches Triggered . | . . . . . . Construction Impeded . | . . . . . . Haulers Reinforced . | . . . . . . Active Scanning Responses . | . . . . . . Cargo Convoy Interrupts . | . . . . . . Stealth | -11 -10 -9 -8 -8 -7 --------- Run | Scr Mat Mat Mat Sto Fac Distress Signals 2 | . 1 . . 1 . Communications Jammed . | . . . . . . Distress Signals . | . . . . . . Times Spotted 19 | . 5 1 1 12 . Peak Tracking Total 7 | . 5 1 . 7 . Tactical Retreats 2 | . . . . 2 . Traps | -11 -10 -9 -8 -8 -7 ------- Run | Scr Mat Mat Mat Sto Fac Traps Triggered 2 | . . . 1 1 . Indirectly . | . . . . . . Trap Hack Attempts . | . . . . . . Triggered . | . . . . . . Disarmed . | . . . . . . Reprogrammed . | . . . . . . Reused . | . . . . . . Traps Extracted . | . . . . . . Installed . | . . . . . . Triggered . | . . . . . . Machines | -11 -10 -9 -8 -8 -7 ---------- Run | Scr Mat Mat Mat Sto Fac Machines Disabled . | . . . . . . Max in Single Turn . | . . . . . . Machines Sabotaged . | . . . . . . Garrisons Compromised . | . . . . . . Overloaded Fab Kills . | . . . . . . Hacking | -11 -10 -9 -8 -8 -7 --------- Run | Scr Mat Mat Mat Sto Fac Machines Accessed 6 | . 2 . 1 3 . Terminals 6 | . 2 . 1 3 . Fabricators . | . . . . . . Repair Stations . | . . . . . . Recycling Units . | . . . . . . Scanalyzers . | . . . . . . Garrison Access . | . . . . . . Total Hacks 19 | . 7 . 5 7 . Successful 7 | . 4 . 2 1 . Failed 12 | . 3 . 3 6 . Catastrophic 4 | . 1 . 2 1 . Database Lockouts . | . . . . . . Manual 18 | . 7 . 5 6 . Terminals 19 | . 7 . 5 7 . Fabricators . | . . . . . . Repair Stations . | . . . . . . Recycling Units . | . . . . . . Scanalyzers . | . . . . . . Garrison Access . | . . . . . . Terminal Hacks 4 | . 2 . 1 1 . Open Door 1 | . . . . 1 . Level Access Points 1 | . 1 . . . . Terminal Index 2 | . 1 . 1 . . Fabricator Hacks . | . . . . . . Repair Station Hacks . | . . . . . . Recycling Unit Hacks . | . . . . . . Scanalyzer . | . . . . . . Garrison Access Hacks . | . . . . . . Unauthorized Hacks 3 | . 2 . 1 . . Terminals 3 | . 2 . 1 . . Botnet 3 | . 2 . 1 . . Fabricators . | . . . . . . Repair Stations . | . . . . . . Recycling Units . | . . . . . . Scanalyzers . | . . . . . . Garrison Access . | . . . . . . Data Cores Recovered . | . . . . . . Used . | . . . . . . Hacking Detections 4 | . 1 . 1 2 . Full Trace Events 4 | . 1 . 1 2 . Feedback Events . | . . . . . . Feedback Blocked . | . . . . . . Robot Schematics Acquired . | . . . . . . Robots Built . | . . . . . . Authchips . | . . . . . . Time . | . . . . . . Total Robot Build Rating . | . . . . . . Part Schematics Acquired . | . . . . . . Parts Built . | . . . . . . Authchips . | . . . . . . Time . | . . . . . . Total Part Build Rating . | . . . . . . Parts Repaired . | . . . . . . Time . | . . . . . . Parts Recycled . | . . . . . . Recycled Matter . | . . . . . . Retrieved Matter . | . . . . . . Retrieved Components . | . . . . . . Parts Scanalyzed . | . . . . . . Part Schematics Acquired . | . . . . . . Parts Damaged . | . . . . . . Bothacking | -11 -10 -9 -8 -8 -7 ------------ Run | Scr Mat Mat Mat Sto Fac Used RIF Installer . | . . . . . . Robots Hacked . | . . . . . . Non-combat . | . . . . . . Combat . | . . . . . . Robot Hacks Applied . | . . . . . . Relay Couplers Released . | . . . . . . Fabnet Peak Effective % . | . . . . . . Robots Rewired . | . . . . . . Allies Hacked . | . . . . . . Hacks Repelled . | . . . . . . Allies | -11 -10 -9 -8 -8 -7 -------- Run | Scr Mat Mat Mat Sto Fac Total Allies . | . . . . . . Largest Group . | . . . . . . Highest-Rated Group . | . . . . . . Highest-Rated Ally . | . . . . . . Total Orders . | . . . . . . Ally Attacks . | . . . . . . Total Damage . | . . . . . . Kills . | . . . . . . Allies Corrupted . | . . . . . . Allies Melted . | . . . . . . Intel | -11 -10 -9 -8 -8 -7 ------- Run | Scr Mat Mat Mat Sto Fac Robot Analysis Total . | . . . . . . Derelict Logs Recovered . | . . . . . . Drone Launches . | . . . . . . Drone Recoveries . | . . . . . . Exploration | -11 -10 -9 -8 -8 -7 ------------- Run | Scr Mat Mat Mat Sto Fac Turns Passed 254 | 3 56 40 53 102 . Spaces Moved 460 | 1 82 79 104 194 . Core 460 | 1 82 79 104 194 . Treads . | . . . . . . Legs . | . . . . . . Wheels . | . . . . . . Hover . | . . . . . . Flight . | . . . . . . Fastest Speed 50 | 50 50 50 50 50 . Average Speed 50 | 50 50 50 50 50 . Slowest Speed 50 | 50 50 50 50 50 . Overloaded Moves . | . . . . . . Propulsion Burnouts . | . . . . . . Robots Hopped . | . . . . . . Cave-ins Triggered . | . . . . . . Exploration Rate (%) 18 | 2 20 14 17 38 . Regions Visited 5 Branch Regions 1 Pre-discovered Areas . | . . . . . . Known Exits Taken 1 | . 1 . . . . Unknown Exits Taken 4 | 1 . 1 1 1 . Scrap Searched . | . . . . . . Spaces Dug . | . . . . . . Terrain Destroyed . | . . . . . . Melee . | . . . . . . Projectile . | . . . . . . AOE . | . . . . . . Terrain Rammed . | . . . . . . Walls Destroyed . | . . . . . . Machines Disabled . | . . . . . . Actions | -11 -10 -9 -8 -8 -7 --------- Run | Scr Mat Mat Mat Sto Fac Total 481 | 5 96 78 104 198 . Wait . | . . . . . . Move 456 | . 81 78 104 193 . Hop . | . . . . . . Pick Up . | . . . . . . Fast Attach . | . . . . . . Attach . | . . . . . . Detach . | . . . . . . Swap . | . . . . . . Drop 5 | 5 . . . . . Fire . | . . . . . . Melee . | . . . . . . Ram 20 | . 15 . . 5 . Kick . | . . . . . . Crush . | . . . . . . Escape Stasis . | . . . . . . Rewire . | . . . . . . Trap . | . . . . . . Miscellaneous . | . . . . . . Route ------- -11/Scrapyard -10/Materials (discovered 3 exits: *Mat x3) -9/Materials -8/Materials -8/Storage -7/Factory History --------- Turn | Location | Event 1 | -11/Scrapyard | Released all parts (6) 4 | -11/Scrapyard | Discovered new exit (range 0) 4 | -11/Scrapyard | Entered Materials 27 | -10/Materials | Identified exit to Materials 55 | -10/Materials | Core integrity fell below 50% 60 | -10/Materials | Entered another Materials area 60 | -9/Materials | Evolved 2 slots: Utility x2 92 | -9/Materials | Discovered new exit (range 16) 100 | -9/Materials | Entered another Materials area 100 | -8/Materials | Evolved 2 slots: Propulsion x2 150 | -8/Materials | Discovered new exit (range 6) 153 | -8/Materials | Entered Storage 210 | -8/Storage | Core integrity fell below 50% 248 | -8/Storage | Discovered new exit (range 16) 255 | -8/Storage | Entered Factory 255 | -7/Factory | Evolved 2 slots: Propulsion x2 255 | -7/Factory | Self-destructed Last Messages --------------- S008. 00200_ Connecting with Door Terminal... >>Open(Door) Sealed Heavy Doors opened. 00204_ S-10 Pest destroyed. 00207_ Slammed into K-01 Serf. 00216_ Slammed into Y-45 Defender. 00216_ Critical hit (Burn: +37). 00217_ Slammed into Y-45 Defender. 00230_ Slammed into A-02 Transporter. 00232_ W-25 Informer sends out distress signal. 00237_ K-01 Serf collects debris. 00240_ K-01 Serf destroyed. 00245_ Triggered Shock Trap. 00245_ The floor emits a surge of raw power. 00245_ System corrupted (+1). 00248_ EXIT=FOUND PARAMETERS=PROPULSION+2 LOCATION=UNKNOWN GOAL=ESCAPE Map ----- +----------------------------------------------------+ | ????????????????????????????????? | | ????????????????????????????????? | | ????????????????????????????????? | | ????????????????????????????????? | | ????????????????????????????????? | | ????????????????????????????????? | | ????????????????????????????????? | | ????????????????????????????????? | | ????????????????????????????????? | | ????????????????????????????????? | | ????????????????????????????????? | | ????????????????????????????????? | | ????????????????????????????????? | | ????????????????????????????????? | | ????????????????????????????????? | | ????????????????????????????????? | | ????????????????????????????????? | | ????????????????????????????????? | | ????????????????????????????????? | | ????????????????????????????????? | | ????????????????????????????????? | | ????????????????????????????????? | | ?????#######????????????????????? | | ?????# #????????????????????? | | ?????# #????????????????????? | | ?????# @ #????????????????????? | | ?????# +????????????????????? | | ?????# #????????????????????? | | ?????# #????????????????????? | | ?????# #????????????????????? | | ?????# #????????????????????? | | ?????# #????????????????????? | | ?????# ????????????????????? | | ?????# ????????????????????? | | ?????# ???????????????????? | | ?????# ???????????????????? | | ?????# ???????????????????? | | ?????#########??????????????????? | | ????????????????????????????????? | | ????????????????????????????????? | | ????????????????????????????????? | | ????????????????????????????????? | | ????????????????????????????????? | | ????????????????????????????????? | | ????????????????????????????????? | | ????????????????????????????????? | | ????????????????????????????????? | | ????????????????????????????????? | | ????????????????????????????????? | | ????????????????????????????????? | +----------------------------------------------------+ Best States ------------- Heat Dissipation 31 Energy Generation 5 Energy Capacity 100 Matter Stores 300 Matter Capacity 300 Sight Range 16 Terrain Scan Density 10 Evasion (%) 50 Item Schematics ----------------- None Robot Schematics ------------------ None Fabricated ------------ Nothing Alien Tech Used ----------------- None Achievements -------------- None Challenges ------------ None Game ------ Seed ShieldFortressInverter Manual? 0 Play Time 00:03:19 Cumulative 258.4 hours Start 2022.05.14 @ 18:27:02 End 2022.05.14 @ 18:30:19 Sessions 1 Manual Loads 0 Difficulty Rogue Special Mode None Game No. 407 Rogue 404 Adventurer 0 Explorer 3 Win Type - Total 9 Types 9/0/0/0/0/0/0/0/0 Lore% 71 Gallery% 75 Achievement% 63 Wizard Run 0 Options --------- ASCII 1 Keyboard 1 Movement Vi Keybinds 0 Fullscreen 1 Font 18/SmallcapsGlow Map View 76x50 Tactical HUD 1 Map Filters NONE Filters NONE Steam 1 RUN: 862f066b-77ac-407c-9f96-6a067c323bfb